bitfinex-derivatives/quotes_SOLF0:USTF0_20250529
["timestamp","ask_amount","ask_price","bid_price","bid_amount"]
[1748509770047,5.82108999,172.9,172.86,0.04205919]
[1748509770653,5.82108999,172.9,172.86,5.82535919]
[1748509771150,0.03898999,172.9,172.86,0.04205919]
[1748509771543,0.03898999,172.9,172.88,5.7825]
[1748509771839,0.03898999,172.9,172.86,0.04205919]
[1748509772038,0.03898999,172.9,172.89,5.7823]
[1748509788156,0.03898999,172.9,172.86,30.30205919]
[1748509789052,0.03898999,172.9,172.88,5.7825]
[1748509791151,0.03898999,172.9,172.89,5.7823]
[1748509791557,0.03898999,172.9,172.86,33.51198814]
[1748509791761,0.03898999,172.9,172.87,5.783]
[1748509792452,5.82108999,172.9,172.87,5.783]
[1748509793852,5.7824,172.89,172.86,36.08535919]
[1748509794055,5.7824,172.89,172.86,5.82535919]
[1748509794461,5.7824,172.89,172.86,0.04205919]
[1748509795060,5.7827,172.88,172.86,0.04205919]
[1748509797064,5.783,172.87,172.86,0.04205919]
[1748509799160,7.26131894,172.9,172.86,0.04205919]
[1748509799959,5.7826,172.89,172.86,0.04205919]
[1748509800665,5.7826,172.89,172.86,5.82525919]
[1748509801463,5.7826,172.89,172.86,0.04205919]
[1748509803962,5.7826,172.89,172.86,5.82535919]
[1748509807570,0.03898999,172.9,172.86,0.04205919]
[1748509808174,0.03898999,172.9,172.87,5.7828]
[1748509808369,0.03898999,172.9,172.86,0.04205919]
[1748509809271,0.03898999,172.9,172.87,5.7828]
[1748509810171,0.03898999,172.9,172.86,0.04205919]
[1748509810678,5.7826,172.89,172.86,0.04205919]
[1748509811177,5.7828,172.88,172.86,0.04205919]
[1748509812576,5.7825,172.89,172.86,0.04205919]
[1748509813166,5.7825,172.89,172.86,5.82535919]
[1748509813473,0.03898999,172.9,172.86,0.04205919]
[1748509814072,0.03898999,172.9,172.87,3.20992895]
[1748509814273,0.03898999,172.9,172.89,5.7823]
[1748509818683,0.03898999,172.9,172.86,0.04205919]
[1748509819883,0.03898999,172.9,172.88,5.7827]
[1748509821383,0.03898999,172.9,172.89,5.7823]
[1748509833594,8.09441,172.94,172.93,5.781]
[1748509833791,8.09441,172.94,172.89,35.11550226]
[1748509834486,0.03686098,172.93,172.9,0.03908523]
[1748509834682,0.03686098,172.93,172.91,5.7817]
[1748509837182,0.03686098,172.93,172.9,9.02982519]
[1748509837695,0.03686098,172.93,172.9,3.24792519]
[1748509838296,0.03686098,172.93,172.91,5.7814]
[1748509838490,0.03686098,172.93,172.9,3.24792519]
[1748509839395,0.03686098,172.93,172.91,5.7817]
[1748509840897,0.03686098,172.93,172.92,5.7813]
[1748509842395,0.03686098,172.93,172.9,3.24792519]
[1748509843000,0.03686098,172.93,172.91,5.7817]
[1748509843903,0.03686098,172.93,172.9,9.02982519]
[1748509845003,5.81806098,172.93,172.9,0.03908523]
[1748509846105,0.03686098,172.93,172.92,3.20883996]
[1748509847698,0.03686098,172.93,172.92,8.99013996]
[1748509847903,0.03686098,172.93,172.92,5.7813]
[1748509848796,30.08,173.02,172.9,30.11908523]
[1748509849008,30.08,173.02,172.9,30.08]
[1748509849805,0.03963264,172.98,172.94,5.82433093]
[1748509850499,0.03963264,172.98,172.95,5.7803]
[1748509851402,0.03963264,172.98,172.97,5.7797]
[1748509852300,0.03963264,172.98,172.96,5.78]
[1748509852604,0.03963264,172.98,172.94,30.12393093]
[1748509853195,5.81923264,172.98,172.94,30.12393093]
[1748509854001,0.03963264,172.98,172.94,30.12393093]
[1748509854398,0.03963264,172.98,172.94,0.04393093]
[1748509854805,5.81903264,172.98,172.94,5.82433093]
[1748509855403,5.7797,172.97,172.94,0.04393093]
[1748509855605,30.11963264,172.98,172.94,0.04393093]
[1748509855807,1.916,172.97,172.94,0.04393093]
[1748509856407,5.7803,172.95,172.94,0.04393093]
[1748509857911,3.8581,172.97,172.88,30.08]
[1748509857912,5.7811,172.93,172.88,30.08]
[1748509858406,5.7811,172.93,172.85,30.08]
[1748509858810,5.7808,172.94,172.85,30.08]
[1748509859010,0.04429896,172.91,172.88,0.04095377]
[1748509859908,0.04429896,172.91,172.9,5.782]
[1748509860711,1.8824,173.0,172.94,5.7804]
[1748509860712,5.7791,172.99,172.94,5.7804]
[1748509861009,1.8824,173.0,172.89,39.12341343]
[1748509861404,5.7791,172.99,172.94,5.7806]
[1748509861605,1.8824,173.0,172.94,5.7806]
[1748509861807,0.0384456,172.99,172.95,0.04357688]
[1748509862211,5.7796,172.98,172.95,0.04357688]
[1748509862412,0.0384456,172.99,172.95,0.04357688]
[1748509862607,30.0584456,172.99,172.95,0.04357688]
[1748509862920,5.7798,172.97,172.95,0.04357688]
[1748509863120,1.9923456,172.99,172.95,5.82377688]
[1748509863614,1.9923456,172.99,172.96,5.78]
[1748509864214,7.7714456,172.99,172.96,5.78]
[1748509867619,7.7714456,172.99,172.95,0.04357688]
[1748509867620,0.0384456,172.99,172.98,5.7793]
[1748509868721,2.0546,173.05,172.97,30.02]
[1748509868916,30.02,173.08,172.97,30.02]
[1748509869118,5.7764,173.07,172.97,30.02]
[1748509869419,5.7764,173.07,172.97,31.9902]
[1748509869717,0.03992893,173.04,173.0,0.03773439]
[1748509870112,0.03992893,173.04,173.02,5.7778]
[1748509870315,0.03992893,173.04,173.0,0.03773439]
[1748509870813,5.81742893,173.04,173.0,5.81613439]
[1748509871215,0.03992893,173.04,173.0,0.03773439]
[1748509871414,0.03992893,173.04,173.02,5.7778]
[1748509872620,0.03992893,173.04,173.03,5.7777]
[1748509874121,30.02,173.13,173.07,5.7762]
[1748509874314,30.02,173.13,173.01,30.02]
[1748509874521,5.775,173.11,173.01,30.02]
[1748509874719,5.775,173.11,173.05,5.7768]
[1748509875118,0.03969691,173.1,173.05,5.7768]
[1748509875327,0.03969691,173.1,173.06,0.03710889]
[1748509875921,5.7759,173.09,173.06,0.03710889]
[1748509876225,0.03969691,173.1,173.06,0.03710889]
[1748509876818,5.7763,173.08,173.06,0.03710889]
[1748509877127,0.03969691,173.1,173.06,0.03710889]
[1748509877322,5.7763,173.07,173.06,0.03710889]
[1748509880226,30.0,173.09,173.06,0.03710889]
[1748509880432,30.0,173.09,173.06,5.81370889]
[1748509880819,35.7757,173.09,173.06,5.81370889]
[1748509881224,35.7757,173.09,173.06,0.03710889]
[1748509881531,5.7763,173.07,173.06,0.03710889]
[1748509881930,30.0,173.09,173.06,0.03710889]
[1748509882230,5.7761,173.08,173.06,0.03710889]
[1748509882827,35.7758,173.09,173.06,0.03710889]
[1748509883023,35.7758,173.09,173.06,5.81370889]
[1748509883024,5.7758,173.09,173.06,5.81370889]
[1748509883227,0.03969691,173.1,173.06,0.03710889]
[1748509883731,0.03969691,173.1,173.09,5.7757]
[1748509884031,5.7736,173.16,173.06,0.03710889]
[1748509884229,5.7736,173.16,173.12,5.7745]
[1748509884732,5.7736,173.16,173.13,5.7743]
[1748509884934,5.81606786,173.16,173.13,5.81528898]
[1748509885129,5.81606786,173.16,173.13,0.04098898]
[1748509886430,0.04246786,173.16,173.13,0.04098898]
[1748509886633,1.9817,173.15,173.13,0.04098898]
[1748509886830,30.0,173.14,173.13,0.04098898]
[1748509887937,35.774,173.14,173.13,0.04098898]
[1748509895538,5.774,173.14,173.13,0.04098898]
[1748509899146,0.04246786,173.16,173.13,0.04098898]
[1748509902151,5.774,173.14,173.13,0.04098898]
[1748509904453,0.04246786,173.16,173.13,0.04098898]
[1748509906256,0.04246786,173.16,173.15,5.7737]
[1748509906855,0.04246786,173.16,173.13,0.04098898]
[1748509906856,29.94,173.23,173.17,5.7728]
[1748509907256,29.94,173.23,173.1,3.9756]
[1748509907450,29.94,173.23,173.17,5.7727]
[1748509907656,29.94,173.23,173.1,3.9756]
[1748509907853,0.03836887,173.18,173.15,0.04391728]
[1748509908762,36.0623,173.27,173.15,0.04391728]
[1748509909055,5.7707,173.24,173.14,2.0641]
[1748509909660,5.771,173.23,173.14,2.0641]
[1748509909861,0.02688479,173.2,173.17,0.03783611]
[1748509910756,0.02688479,173.2,173.19,5.7723]
[1748509910952,0.02688479,173.2,173.17,0.03783611]
[1748509911862,0.02688479,173.2,173.19,5.7723]
[1748509913964,0.02688479,173.2,173.17,0.03783611]
[1748509914559,5.79898479,173.2,173.17,0.03783611]
[1748509914758,0.02688479,173.2,173.17,0.03783611]
[1748509915859,5.7727,173.19,173.17,0.03783611]
[1748509916261,5.79898479,173.2,173.17,0.03783611]
[1748509917157,0.02688479,173.2,173.17,0.03783611]
[1748509918963,5.79898479,173.2,173.17,0.03783611]
[1748509919165,0.02688479,173.2,173.17,5.81073611]
[1748509922065,5.79898479,173.2,173.17,0.03783611]
[1748509922769,0.02688479,173.2,173.17,5.81083611]
[1748509923267,5.79898479,173.2,173.17,0.03783611]
[1748509924666,5.79898479,173.2,173.17,5.81073611]
[1748509925268,0.02688479,173.2,173.19,5.7723]
[1748509925676,0.02688479,173.2,173.17,0.03783611]
[1748509925865,0.02688479,173.2,173.18,5.7726]
[1748509926071,0.02688479,173.2,173.17,0.03783611]
[1748509926267,5.79908479,173.2,173.17,0.03783611]
[1748509928973,5.79908479,173.2,173.17,5.81083611]
[1748509929874,0.02688479,173.2,173.17,5.81083611]
[1748509933281,0.02688479,173.2,173.17,0.03783611]
[1748509933780,0.02688479,173.2,173.19,5.7723]
[1748509933979,35.7115,173.22,173.19,5.7723]
[1748509934181,29.94,173.22,173.14,29.9]
[1748509934380,29.9,173.25,173.2,5.7717]
[1748509934677,5.7709,173.24,173.2,5.7717]
[1748509934877,5.80750347,173.24,173.2,5.80836446]
[1748509935281,5.771,173.23,173.2,5.80836446]
[1748509935477,0.03660347,173.24,173.2,0.03666446]
[1748509937089,5.7717,173.21,173.2,0.03666446]
[1748509937287,35.6717,173.21,173.2,0.03666446]
[1748509942385,29.93660347,173.24,173.2,0.03666446]
[1748509943895,5.7717,173.21,173.2,0.03666446]
[1748509957605,35.6317,173.21,173.2,0.03666446]
[1748509957810,29.86,173.21,173.11,29.9]
[1748509958002,1.9643,173.2,173.11,29.9]
[1748509958203,3.8972,173.2,173.11,29.9]
[1748509958403,3.8972,173.2,173.09,3.9199]
[1748509958601,1.9687,173.19,173.09,3.9199]
[1748509958800,5.81279209,173.16,173.12,5.81628409]
[1748509959198,0.03919209,173.16,173.12,5.81628409]
[1748509960315,5.7739,173.15,173.12,5.81628409]
[1748509961305,5.774,173.14,173.12,0.04188409]
[1748509965209,0.03919209,173.16,173.12,0.04188409]
[1748509965413,5.7738,173.15,173.12,5.81648409]
[1748509965711,0.03919209,173.16,173.12,0.04188409]
[1748509966013,5.774,173.15,173.12,0.04188409]
[1748509967913,5.81269209,173.16,173.12,0.04188409]
[1748509968511,5.81269209,173.16,173.13,5.7741]
[1748509968814,0.03919209,173.16,173.12,0.04188409]
[1748509970810,0.03919209,173.16,173.15,5.7737]
[1748509979029,0.03919209,173.16,173.14,5.7739]
[1748509979724,29.88,173.23,173.12,34.93569752]
[1748509980032,29.88,173.23,173.13,6.1198]
[1748509980332,29.88,173.23,173.16,5.773]
[1748509980528,29.88,173.23,173.13,6.1198]
[1748509980725,5.81354221,173.2,173.16,5.81252701]
[1748509981032,5.81354221,173.2,173.16,0.03922701]
[1748509981233,0.04154221,173.2,173.17,5.773]
[1748509981632,0.04154221,173.2,173.16,0.03922701]
[1748509982222,0.04154221,173.2,173.19,5.7723]
[1748510016761,0.04154221,173.2,173.18,5.7725]
[1748510017762,0.04154221,173.2,173.17,5.7729]
[1748510018656,3.24045101,173.2,173.16,5.81252701]
[1748510018860,3.1989088,173.18,173.16,0.03922701]
[1748510019467,8.9716088,173.18,173.16,0.03922701]
[1748510020064,3.1989088,173.18,173.16,0.03922701]
[1748510020969,29.8,173.19,173.17,5.7729]
[1748510021263,32.9989088,173.19,173.16,0.03922701]
[1748510021965,32.9989088,173.19,173.16,5.81242701]
[1748510022167,32.9989088,173.19,173.16,0.03922701]
[1748510022364,29.8,173.19,173.16,0.03922701]
[1748510022771,29.8,173.19,173.17,5.773]
[1748510023267,29.84154221,173.2,173.16,5.81242701]
[1748510026068,29.84154221,173.2,173.16,0.03922701]
[1748510026874,29.84154221,173.2,173.17,5.7728]
[1748510027378,29.84154221,173.2,173.18,5.7723]
[1748510028377,29.84154221,173.2,173.19,5.7723]
[1748510031177,29.84154221,173.2,173.18,5.7726]
[1748510031381,29.84154221,173.2,173.16,0.03922701]
[1748510031980,29.84154221,173.2,173.16,5.81252701]
[1748510035385,35.61364221,173.2,173.16,5.81252701]
[1748510035981,3.1989088,173.19,173.16,0.03922701]
[1748510036572,3.1989088,173.19,173.16,5.81252701]
[1748510040587,3.1989088,173.19,173.16,0.03922701]
[1748510042878,3.1989088,173.19,173.16,5.81252701]
[1748510043082,3.1989088,173.19,173.16,0.03922701]
[1748510043886,3.1989088,173.19,173.17,5.773]
[1748510044190,3.1989088,173.19,173.16,0.03922701]
[1748510044580,3.1989088,173.19,173.16,5.81252701]
[1748510045682,3.1989088,173.19,173.17,5.773]
[1748510045880,29.84154221,173.2,173.16,0.03922701]
[1748510046490,29.84154221,173.2,173.18,5.7725]
[1748510049484,29.84154221,173.2,173.19,5.7723]
[1748510049994,29.84154221,173.2,173.18,5.7726]
[1748510050597,29.84154221,173.2,173.17,5.7729]
[1748510053003,3.1989088,173.18,173.16,0.03922701]
[1748510058304,3.1989088,173.18,173.09,29.78]
[1748510058496,3.1989088,173.16,173.08,6.9978088]
[1748510058697,38.7524088,173.16,173.11,5.7747]
[1748510059402,0.04385817,173.15,173.12,0.03938722]
[1748510060005,5.81765817,173.15,173.12,0.03938722]
[1748510061296,0.04385817,173.15,173.12,0.03938722]
[1748510061498,8.9729088,173.14,173.12,0.03938722]
[1748510061897,3.1989088,173.14,173.12,0.03938722]
[1748510062605,5.7743,173.13,173.12,0.03938722]
[1748510063009,3.1989088,173.14,173.07,5.7761]
[1748510063209,3.1989088,173.11,173.07,5.7761]
[1748510063905,3.1989088,173.11,173.07,5.81622248]
[1748510063906,3.23544756,173.11,173.07,5.81622248]
[1748510067207,9.01054756,173.11,173.07,5.81622248]
[1748510067705,9.01054756,173.11,173.07,0.04012248]
[1748510067901,3.1989088,173.09,173.07,0.04012248]
[1748510068210,32.9789088,173.09,173.07,0.04012248]
[1748510069006,32.9789088,173.09,173.07,5.81642248]
[1748510069702,32.9789088,173.09,173.07,0.04012248]
[1748510070509,38.7546088,173.09,173.07,0.04012248]
[1748510071407,32.9789088,173.09,173.07,0.04012248]
[1748510073310,38.7548088,173.09,173.07,0.04012248]
[1748510073912,32.9789088,173.09,173.07,0.04012248]
[1748510076813,32.9789088,173.09,173.07,5.81642248]
[1748510077510,29.78,173.09,173.08,5.776]
[1748510082717,29.78,173.09,173.07,0.04012248]
[1748510085412,3.1989088,173.08,173.07,0.04012248]
[1748510086121,8.9749088,173.08,173.07,0.04012248]
[1748510086712,3.1989088,173.08,173.07,0.04012248]
[1748510091026,8.9749088,173.08,173.07,0.04012248]
[1748510093130,5.7765,173.07,172.99,3.1989088]
[1748510093428,3.1989088,173.06,172.99,3.1989088]
[1748510093726,29.76,173.05,173.02,5.7778]
[1748510094125,3.1989088,173.04,173.02,0.03993002]
[1748510094829,3.1989088,173.04,173.02,5.81783002]
[1748510097523,3.1989088,173.04,173.03,5.7777]
[1748510098329,29.80409342,173.05,173.03,5.7777]
[1748510102227,29.80409342,173.05,173.04,5.7774]
[1748510102627,0.04409342,173.05,173.04,5.7774]
[1748510104335,0.04409342,173.05,173.03,5.7776]
[1748510104525,0.04409342,173.05,173.02,0.03993002]
[1748510104730,29.72,173.04,173.02,0.03993002]
[1748510105432,29.72,173.04,173.03,5.7777]
[1748510105935,29.72,173.04,173.02,5.81793002]
[1748510106735,29.72,173.04,173.02,0.03993002]
[1748510107335,29.72,173.04,173.02,5.81773002]
[1748510108137,29.72,173.04,173.03,5.7777]
[1748510115538,29.72,173.04,173.02,0.03993002]
[1748510117045,5.7777,173.03,173.02,0.03993002]
[1748510128549,29.72,173.04,172.97,5.7796]
[1748510128550,5.7786,173.01,172.97,5.7796]
[1748510128849,29.72,173.0,172.97,5.7796]
[1748510129756,29.76082462,173.0,172.97,5.81821475]
[1748510131955,32.96841092,173.0,172.97,5.81821475]
[1748510132354,8.9869863,172.98,172.97,0.03861475]
[1748510132660,8.9869863,172.98,172.91,2.0271]
[1748510132877,3.2075863,172.98,172.91,2.0271]
[1748510133568,0.0418082,172.96,172.93,0.03649476]
[1748510134072,0.0418082,172.96,172.95,5.7804]
[1748510134268,0.0418082,172.96,172.93,0.03649476]
[1748510135173,0.0418082,172.96,172.95,5.7804]
[1748510145783,8.2e-06,172.96,172.95,5.7804]
[1748510157894,8.2e-06,172.96,172.95,8.98739697]
[1748510158694,8.2e-06,172.96,172.95,5.7804]
[1748510158888,8.2e-06,172.96,172.95,8.98739697]
[1748510160791,29.68,173.04,173.03,5.7778]
[1748510166797,0.04400938,173.05,173.04,5.7774]
[1748510183326,0.04400938,173.05,173.02,0.04051392]
[1748510183930,0.04400938,173.05,173.02,5.81851392]
[1748510184130,0.04400938,173.05,173.02,0.04051392]
[1748510184927,0.04400938,173.05,173.03,5.7777]
[1748510187329,0.04400938,173.05,173.04,5.7774]
[1748510206353,0.04400938,173.05,173.04,8.98439697]
[1748510207351,9.38e-06,173.05,173.04,8.98439697]
[1748510218965,9.38e-06,173.05,173.04,38.54439697]
[1748510219359,32.76699697,173.13,173.11,5.775]
[1748510219560,29.56,173.13,173.11,5.775]
[1748510219754,1.9228,173.15,173.07,3.20699697]
[1748510219957,31.4828,173.15,173.14,5.7741]
[1748510220155,1.9228,173.15,173.14,5.7741]
[1748510220559,1.9228,173.15,173.13,5.81378671]
[1748510222966,7.6966,173.15,173.13,0.03948671]
[1748510223165,1.9228,173.15,173.13,0.03948671]
[1748510223569,5.12979697,173.15,173.04,29.56]
[1748510223871,1.9228,173.15,173.04,32.76699697]
[1748510224075,3.20699697,173.12,173.07,5.7761]
[1748510224367,3.20699697,173.08,173.01,29.56]
[1748510224570,0.04313485,173.06,173.04,5.7771]
[1748510224770,0.04313485,173.06,173.03,0.04109129]
[1748510225671,0.04313485,173.06,173.04,5.7771]
[1748510226671,0.04313485,173.06,173.03,0.04109129]
[1748510226870,29.56,173.05,172.95,29.56]
[1748510227370,7.8328,173.04,173.0,5.7785]
[1748510227875,7.87315923,173.04,173.0,5.82243418]
[1748510228071,2.09545923,173.04,173.0,5.82243418]
[1748510229072,2.09545923,173.04,173.01,5.7782]
[1748510231269,2.09545923,173.04,173.02,5.7781]
[1748510232276,2.09545923,173.04,173.01,5.7784]
[1748510232572,7.87295923,173.04,173.01,5.7784]
[1748510232773,2.09545923,173.04,173.01,5.7784]
[1748510232973,2.09545923,173.04,173.02,5.7781]
[1748510236478,2.09545923,173.04,173.01,5.7783]
[1748510239083,2.09545923,173.04,173.02,5.7781]
[1748510240373,2.09545923,173.04,173.0,0.04393418]
[1748510240975,5.7783,173.02,173.0,0.04393418]
[1748510241181,29.52,173.01,173.0,0.04393418]
[1748510241869,29.52,173.01,173.0,5.82273418]
[1748510245282,29.52,173.01,173.0,0.04393418]
[1748510245976,32.72756754,173.01,172.91,29.52]
[1748510246176,3.20756754,172.99,172.91,29.52]
[1748510246877,5.7795,172.98,172.95,5.7802]
[1748510247184,0.04258626,172.98,172.95,0.03673675]
[1748510248280,0.04258626,172.98,172.96,5.7799]
[1748510249185,32.72756754,172.97,172.95,0.03673675]
[1748510249889,5.7801,172.96,172.95,0.03673675]
[1748510250983,29.52,172.97,172.95,0.03673675]
[1748510251681,29.52,172.97,172.95,5.81713675]
[1748510252382,29.52,172.97,172.96,5.7801]
[1748510252775,0.04258626,172.98,172.95,0.03673675]
[1748510253084,29.56258626,172.98,172.97,5.7798]
[1748510255683,29.56258626,172.98,172.96,5.7801]
[1748510257283,35.34208626,172.98,172.95,5.81703675]
[1748510258482,5.7799,172.97,172.95,0.03673675]
[1748510259287,35.34218626,172.98,172.95,0.03673675]
[1748510259876,5.7799,172.97,172.95,0.03673675]
[1748510260586,35.34218626,172.98,172.95,0.03673675]
[1748510260777,29.56258626,172.98,172.95,0.03673675]
[1748510261181,29.56258626,172.98,172.95,5.81693675]
[1748510261388,29.56258626,172.98,172.95,0.03673675]
[1748510262687,29.56258626,172.98,172.96,5.7798]
[1748510263391,29.56258626,172.98,172.97,5.7798]
[1748510268093,29.56258626,172.98,172.96,5.78]
[1748510269493,29.56258626,172.98,172.97,5.7798]
[1748510274988,29.56258626,172.98,172.95,0.03673675]
[1748510275591,29.56258626,172.98,172.95,5.81703675]
[1748510276083,35.34208626,172.98,172.95,0.03673675]
[1748510276289,29.56258626,172.98,172.95,0.03673675]
[1748510278390,35.34228626,172.98,172.95,0.03673675]
[1748510278993,35.34228626,172.98,172.95,5.81713675]
[1748510279195,29.56258626,172.98,172.95,5.81713675]
[1748510280091,35.34208626,172.98,172.95,5.81713675]
[1748510280800,29.56258626,172.98,172.95,0.03673675]
[1748510281900,29.56258626,172.98,172.97,5.7798]
[1748510282897,29.56258626,172.98,172.95,0.03673675]
[1748510284202,5.78,172.97,172.95,0.03673675]
[1748510287199,5.7801,172.96,172.95,0.03673675]
[1748510288109,5.78,172.96,172.79,29.44]
[1748510288406,5.01518541,172.93,172.86,5.7832]
[1748510288606,5.7825,172.89,172.8,5.8735]
[1748510288996,0.04124147,172.86,172.83,0.0444018]
[1748510289304,0.04124147,172.86,172.83,5.8288018]
[1748510290504,0.04124147,172.86,172.84,5.7841]
[1748510292097,0.04124147,172.86,172.85,5.7838]
[1748510299116,4.147e-05,172.86,172.85,5.7838]
[1748510329027,4.147e-05,172.86,172.83,0.0444018]
[1748510329320,29.40004147,172.86,172.83,0.0444018]
[1748510329930,4.147e-05,172.86,172.83,0.0444018]
[1748510330127,4.147e-05,172.86,172.85,5.7835]
[1748510331426,4.147e-05,172.86,172.84,5.784]
[1748510331725,4.147e-05,172.86,172.83,0.0444018]
[1748510332730,4.147e-05,172.86,172.85,5.7838]
[1748510340626,4.147e-05,172.86,172.84,5.784]
[1748510341822,4.147e-05,172.86,172.85,5.7838]
[1748510352342,29.38,172.93,172.84,3.2126985]
[1748510352343,36.5990985,172.96,172.84,3.2126985]
[1748510352537,36.5990985,172.96,172.88,3.2126985]
[1748510352741,42.3793985,172.96,172.92,5.7811]
[1748510353136,36.5990985,172.96,172.92,0.0391235]
[1748510353332,5.7807,172.95,172.92,0.0391235]
[1748510354844,33.42390643,172.96,172.92,5.8203235]
[1748510355545,33.42390643,172.96,172.92,0.0391235]
[1748510356149,5.7807,172.95,172.92,0.0391235]
[1748510357847,39.20410643,172.96,172.92,5.8205235]
[1748510359547,33.42390643,172.96,172.93,5.7809]
[1748510361851,39.20400643,172.96,172.93,5.7809]
[1748510364151,5.7805,172.95,172.92,5.8205235]
[1748510367353,39.20410643,172.96,172.93,5.7811]
[1748510367553,33.42390643,172.96,172.93,5.7811]
[1748510367851,31.50610643,172.96,172.94,5.7808]
[1748510368153,31.50610643,172.96,172.92,0.0391235]
[1748510368154,29.41750643,172.96,172.92,0.0391235]
[1748510368353,29.41750643,172.96,172.94,5.7807]
[1748510368546,29.41750643,172.96,172.92,0.0391235]
[1748510369047,29.41750643,172.96,172.95,5.7804]
[1748510370854,29.41750643,172.96,172.92,0.0391235]
[1748510371457,5.7808,172.94,172.92,0.0391235]
[1748510372656,9.6113,172.95,172.92,0.0391235]
[1748510373246,9.6113,172.95,172.92,5.8205235]
[1748510373649,5.7809,172.94,172.92,0.0391235]
[1748510374456,9.6112,172.95,172.92,0.0391235]
[1748510375055,5.7808,172.94,172.92,0.0391235]
[1748510377860,9.6112,172.95,172.92,5.8205235]
[1748510378658,5.7805,172.95,172.92,5.8205235]
[1748510379253,5.7808,172.94,172.92,0.0391235]
[1748510380057,5.7806,172.95,172.92,0.0391235]
[1748510380459,5.7806,172.95,172.92,5.8205235]
[1748510382663,5.7806,172.95,172.92,0.0391235]
[1748510382964,5.7809,172.94,172.92,0.0391235]
[1748510385667,8.9907786,172.93,172.92,0.0391235]
[1748510391461,8.9907786,172.93,172.83,32.5296786]
[1748510391462,3.2096786,172.93,172.83,29.32]
[1748510391669,3.2096786,172.9,172.81,3.8968]
[1748510391875,8.9926786,172.88,172.84,5.7839]
[1748510392078,8.9926786,172.88,172.81,3.8968]
[1748510392478,0.04302256,172.86,172.83,0.03887191]
[1748510392879,0.04302256,172.86,172.85,5.7837]
[1748510401084,0.04302256,172.86,172.83,0.03887191]
[1748510401287,3.2096786,172.85,172.83,0.03887191]
[1748510401683,32.59270116,172.86,172.84,5.7841]
[1748510401984,32.59270116,172.86,172.83,0.03887191]
[1748510402384,38.37640116,172.86,172.83,0.03887191]
[1748510403191,32.59270116,172.86,172.83,5.82327191]
[1748510404189,32.59270116,172.86,172.83,0.03887191]
[1748510404384,29.38302256,172.86,172.83,0.03887191]
[1748510404579,32.59270116,172.86,172.83,0.03887191]
[1748510405886,5.784,172.85,172.83,0.03887191]
[1748510406992,38.37630116,172.86,172.83,0.03887191]
[1748510410889,5.7839,172.85,172.83,0.03887191]
[1748510411294,32.59270116,172.86,172.83,0.03887191]
[1748510411488,29.38302256,172.86,172.83,0.03887191]
[1748510412692,29.38302256,172.86,172.84,5.7839]
[1748510413193,29.38302256,172.86,172.84,5.7841]
[1748510414892,0.04302256,172.86,172.85,5.7838]
[1748510422199,2.256e-05,172.86,172.85,5.7838]
[1748510428402,2.256e-05,172.86,172.85,35.0838]
[1748510428909,29.3,172.94,172.93,5.7811]
[1748510432812,0.0433362,172.95,172.94,5.7808]
[1748510435809,3.62e-05,172.95,172.94,8.9904786]
[1748510436011,3.62e-05,172.95,172.94,5.7808]
[1748510442408,3.62e-05,172.95,172.94,35.0208]
[1748510443613,3.62e-05,172.95,172.94,5.7808]
[1748510454918,5.7806362,172.95,172.92,0.04004245]
[1748510455119,29.2400362,172.95,172.85,29.24]
[1748510455425,5.7811,172.94,172.9,5.7819]
[1748510456020,29.2400362,172.95,172.91,5.7817]
[1748510456223,29.28307466,172.95,172.91,5.81962256]
[1748510456816,29.28307466,172.95,172.91,0.03792256]
[1748510457714,29.28307466,172.95,172.94,5.7808]
[1748510458727,29.28307466,172.95,172.91,0.03792256]
[1748510460324,29.28307466,172.95,172.93,5.7808]
[1748510461725,29.28307466,172.95,172.94,5.7808]
[1748510471439,29.28307466,172.95,172.91,5.81952256]
[1748510471625,29.28307466,172.95,172.91,0.03792256]
[1748510472936,5.7811,172.93,172.91,0.03792256]
[1748510474040,5.7808,172.94,172.91,0.03792256]
[1748510474642,5.7808,172.94,172.91,5.81952256]
[1748510478045,5.7808,172.94,172.92,5.7814]
[1748510478945,5.7814,172.92,172.91,0.03792256]
[1748510479148,5.7814,172.92,172.85,29.24]
[1748510479445,29.24,172.95,172.85,29.24]
[1748510480045,5.8184198,172.92,172.89,5.7822]
[1748510484147,0.0369198,172.92,172.89,5.7822]
[1748510484553,5.8186198,172.92,172.89,5.7822]